fUST/lending_fUST_20240525
["ID","MTS","AMOUNT","RATE_DAILY","PERIOD"]
[327874315,1716571752113,-500.0,0.00019178,2]
[327874316,1716571752138,-361.97291333,0.00019178,2]
[327874317,1716571752163,-500.0,0.00019178,2]
[327874318,1716571752188,-500.0,0.00019178,2]
[327874319,1716571752214,-500.0,0.00019178,2]
[327874320,1716571752239,-500.0,0.00019178,2]
[327874321,1716571752264,-350.0,0.00019178,2]
[327874322,1716571752288,-500.0,0.00019178,2]
[327874323,1716571752314,-500.0,0.00019178,2]
[327874324,1716571752334,-168.764017,0.00019178,2]
[327874325,1716571752354,-299.60682001,0.0001938,2]
[327874326,1716571752375,-5164.16510846,0.0001938,2]
[327874327,1716571752428,-3025.24016094,0.0001938,2]
[327874328,1716571756411,268.9791983,0.000165,2]
[327874329,1716571756430,98.99911285,0.000165,2]
[327874330,1716571758110,-15850.84815093,0.00019379,2]
[327874331,1716571758130,-1966.01842902,0.00019379,2]
[327874332,1716571758151,-9819.41311567,0.0001938,2]
[327874333,1716571759671,417.22363167,0.00018,2]
[327874334,1716571759695,73.66912516,0.00018,2]
[327874335,1716571759719,268.65271151,0.00018,2]
[327874336,1716571764425,-154.82968734,0.00017099,2]
[327874337,1716571768103,-136.7666998,0.00018,2]
[327874338,1716571781645,227.3142626,0.00017099,2]
[327874339,1716571803544,35.9190376,0.00017099,2]
[327874340,1716571803564,198.53489107,0.00017099,2]
[327874341,1716571815479,46.16203253,0.00017099,2]
[327874384,1716571834897,-188.80836489,0.00017099,2]
[327874386,1716571834907,-155.04341216,0.00017099,2]
[327874388,1716571834916,-896.31216814,0.00019999,2]
[327874390,1716571834926,-22859.27879206,0.0002,2]
[327874392,1716571834935,-6501.00517801,0.0002028,2]
[327874394,1716571834945,-2635.84610155,0.0002028,2]
[327874396,1716571834955,-187.42513777,0.00020281,2]
[327874397,1716571834964,-190.68358813,0.00020281,2]
[327874398,1716571834975,-154.92253873,0.00020281,2]
[327874400,1716571834985,-15299.98865738,0.00020281,2]
[327874401,1716571834995,-517.43255436,0.00020282,2]
[327874402,1716571835004,-1449.72666987,0.00020282,10]
[327874403,1716571835018,-901.9621981,0.00020282,2]
[327874404,1716571835028,-194.21199943,0.00020282,2]
[327874405,1716571835038,-1898.47491461,0.00020283,2]
[327874406,1716571835047,-22470.58902026,0.00020283,2]
[327874421,1716571838420,-19618.27179682,0.00020283,2]
[327874422,1716571838430,-363.46264299,0.00020283,2]
[327874423,1716571838440,-368.8988042,0.00020283,2]
[327874424,1716571838451,-500.0,0.00020283,2]
[327874425,1716571838461,-500.0,0.00020283,2]
[327874426,1716571838473,-419.57223883,0.00020283,2]
[327874427,1716571838483,-513.591874,0.00020283,2]
[327874428,1716571838493,-500.0,0.00020283,2]
[327874429,1716571838503,-500.0,0.00020283,2]
[327874430,1716571838513,-500.0,0.00020283,2]
[327874431,1716571838523,-500.0,0.00020283,2]
[327874432,1716571838532,-500.0,0.00020283,2]
[327874433,1716571838541,-500.0,0.00020283,2]
[327874434,1716571838550,-500.0,0.00020283,2]
[327874435,1716571838560,-500.0,0.00020283,2]
[327874436,1716571838569,-500.0,0.00020283,2]
[327874437,1716571838579,-500.0,0.00020283,2]
[327874438,1716571838589,-500.0,0.00020283,2]
[327874439,1716571838599,-163.55329144,0.00020284,11]
[327874440,1716571838609,-15000.0,0.00020284,2]
[327874441,1716571838619,-714.95827066,0.00020784,2]
[327874442,1716571838629,-9127.69141355,0.0002091,2]
[327874443,1716571838639,-281.35371434,0.0002091,2]
[327874444,1716571838649,-7897.30988261,0.0002091,2]
[327874445,1716571838659,-2411.40136587,0.00020911,2]
[327874446,1716571838669,-10512.91470053,0.00020912,2]
[327874447,1716571838679,-2598.5410692,0.00020912,2]
[327874448,1716571838689,-2679.91725099,0.00020912,2]
[327874449,1716571838699,-604.85735798,0.00021,2]
[327874450,1716571838710,-4694.88024875,0.00021,2]
[327874451,1716571838720,-166.666666,0.00021918,2]
[327874452,1716571838731,-361.0,0.00022,2]
[327874453,1716571838739,-361.0,0.00022192,2]
[327874454,1716571838749,-1020.54850034,0.00022248,2]
[327874455,1716571838759,-166.666666,0.00022431,2]
[327874456,1716571838769,-361.0,0.00022466,2]
[327874457,1716571838779,-714.95827066,0.00022671,2]
[327874458,1716571838789,-361.0,0.0002274,2]
[327874459,1716571838799,-166.666666,0.00022944,2]
[327874460,1716571838809,-3323.92515861,0.00023,2]
[327874461,1716571838819,-361.0,0.00023014,2]
[327874462,1716571838829,-361.0,0.00023014,2]
[327874463,1716571838839,-166.666666,0.00023456,2]
[327874464,1716571838849,-151.0,0.0002374,5]
[327874465,1716571838859,-151.0,0.0002374,5]
[327874466,1716571838869,-166.666666,0.00023969,2]
[327874467,1716571838879,-374.0,0.00024164,2]
[327874468,1716571838889,-361.0,0.00024164,2]
[327874469,1716571838899,-151.0,0.00024298,5]
[327874470,1716571838909,-169.968212,0.00024384,2]
[327874471,1716571838919,-676.143258,0.00024384,2]
[327874472,1716571838929,-166.666666,0.00024482,2]
[327874473,1716571838939,-714.95827066,0.00024557,2]
[327874474,1716571838949,-289.34259884,0.00024657,2]
[327874475,1716571838958,-500.0,0.00024657,2]
[327874476,1716571838969,-500.0,0.00024657,2]
[327874477,1716571838980,-500.0,0.00024657,2]
[327874478,1716571838991,-500.0,0.00024657,2]
[327874479,1716571839001,-500.0,0.00024657,2]
[327874480,1716571839011,-500.0,0.00024657,2]
[327874481,1716571839026,-500.0,0.00024657,2]
[327874482,1716571839037,-500.0,0.00024657,2]
[327874483,1716571839047,-427.79312952,0.00024657,2]
[327874484,1716571839059,-500.0,0.00024657,2]
[327874485,1716571839070,-500.0,0.00024657,2]
[327874486,1716571839081,-500.0,0.00024657,2]
[327874487,1716571839092,-500.0,0.00024657,2]
[327874488,1716571839105,-500.0,0.00024657,2]
[327874489,1716571839116,-501.76,0.00024657,2]
[327874490,1716571839127,-500.0,0.00024657,2]
[327874491,1716571839137,-500.0,0.00024657,2]
[327874492,1716571839148,-615.59,0.00024657,2]
[327874493,1716571839158,-500.0,0.00024657,2]
[327874494,1716571839169,-500.0,0.00024657,2]
[327874495,1716571839179,-508.77,0.00024657,2]
[327874496,1716571839189,-500.0,0.00024657,2]
[327874497,1716571839199,-500.0,0.00024657,2]
[327874498,1716571839209,-500.0,0.00024657,2]
[327874499,1716571839219,-500.0,0.00024657,2]
[327874500,1716571839231,-185.97658132,0.00024657,2]
[327874501,1716571839242,-500.0,0.00024657,2]
[327874502,1716571839252,-650.17,0.00024657,2]
[327874503,1716571839262,-508.44,0.00024657,2]
[327874504,1716571839272,-500.0,0.00024657,2]
[327874505,1716571839283,-500.0,0.00024657,2]
[327874506,1716571839293,-640.18,0.00024657,2]
[327874507,1716571839303,-500.0,0.00024657,2]
[327874508,1716571839312,-500.0,0.00024657,2]
[327874509,1716571839322,-500.0,0.00024657,2]
[327874510,1716571839332,-500.0,0.00024657,2]
[327874511,1716571839342,-265.59880496,0.00024657,2]
[327874512,1716571839352,-500.0,0.00024657,2]
[327874513,1716571839362,-500.0,0.00024657,2]
[327874514,1716571839372,-3375.84,0.00024657,2]
[327874515,1716571839382,-500.0,0.00024657,2]
[327874516,1716571839392,-500.0,0.00024657,2]
[327874517,1716571839403,-2387.63,0.00024657,2]
[327874518,1716571839412,-500.0,0.00024657,2]
[327874519,1716571839422,-500.0,0.00024657,2]
[327874520,1716571839432,-500.0,0.00024657,2]
[327874521,1716571839442,-500.0,0.00024657,2]
[327874522,1716571839452,-500.0,0.00024657,2]
[327874523,1716571839461,-500.0,0.00024657,2]
[327874524,1716571839471,-500.0,0.00024657,2]
[327874525,1716571839481,-500.0,0.00024657,2]
[327874526,1716571839491,-500.0,0.00024657,2]
[327874527,1716571839501,-500.0,0.00024657,2]
[327874528,1716571839511,-500.0,0.00024657,2]
[327874529,1716571839521,-500.0,0.00024657,2]
[327874530,1716571839535,-500.0,0.00024657,2]
[327874531,1716571839545,-500.0,0.00024657,2]
[327874532,1716571839556,-500.0,0.00024657,2]
[327874533,1716571839566,-500.0,0.00024657,2]
[327874534,1716571839577,-551.39,0.00024657,2]
[327874535,1716571839588,-500.0,0.00024657,2]
[327874536,1716571839599,-730.03,0.00024657,2]
[327874537,1716571839610,-500.0,0.00024657,2]
[327874538,1716571839620,-631.59,0.00024657,2]
[327874539,1716571839631,-500.0,0.00024657,2]
[327874540,1716571839642,-500.0,0.00024657,2]
[327874541,1716571839652,-500.0,0.00024657,2]
[327874542,1716571839662,-9346.19,0.00024657,2]
[327874543,1716571839672,-9346.19,0.00024657,3]
[327874544,1716571839682,-9346.19,0.00024657,4]
[327874545,1716571839692,-9346.19,0.00024657,5]
[327874546,1716571839701,-9346.19,0.00024657,6]
[327874547,1716571839711,-9346.19,0.00024657,7]
[327874548,1716571839721,-9346.19,0.00024657,8]
[327874549,1716571839731,-9346.19,0.00024657,9]
[327874550,1716571839740,-9346.19,0.00024657,10]
[327874551,1716571839750,-9346.19,0.00024657,11]
[327874552,1716571839760,-1314.92,0.00024657,2]
[327874553,1716571839770,-324.04,0.00024657,2]
[327874554,1716571839780,-500.0,0.00024657,2]
[327874555,1716571839789,-531.56,0.00024657,2]
[327874556,1716571839798,-250.0,0.00024657,2]
[327874557,1716571839808,-500.0,0.00024657,2]
[327874558,1716571839819,-500.0,0.00024657,2]
[327874559,1716571839829,-500.0,0.00024657,2]
[327874560,1716571839838,-632.21,0.00024657,2]
[327874561,1716571839848,-527.55,0.00024657,2]
[327874562,1716571839859,-500.0,0.00024657,2]
[327874563,1716571839869,-500.0,0.00024657,2]
[327874564,1716571839879,-1648.32,0.00024657,2]
[327874565,1716571839889,-912.8,0.00024657,2]
[327874566,1716571839898,-500.0,0.00024657,3]
[327874567,1716571839908,-500.0,0.00024657,3]
[327874568,1716571839918,-500.0,0.00024657,2]
[327874569,1716571839928,-500.0,0.00024657,3]
[327874570,1716571839939,-500.0,0.00024657,3]
[327874571,1716571839949,-640.3,0.00024657,3]
[327874572,1716571839960,-500.0,0.00024657,2]
[327874573,1716571839970,-500.0,0.00024657,2]
[327874574,1716571839981,-500.0,0.00024657,2]
[327874575,1716571839992,-500.0,0.00024657,2]
[327874576,1716571840002,-5297.89,0.00024657,2]
[327874577,1716571840012,-500.0,0.00024657,2]
[327874578,1716571840026,-500.0,0.00024657,2]
[327874579,1716571840037,-690.86,0.00024657,2]
[327874580,1716571840048,-5266.04,0.00024657,2]
[327874581,1716571840061,-500.0,0.00024657,2]
[327874582,1716571840071,-500.0,0.00024657,2]
[327874583,1716571840082,-1601.15,0.00024657,2]
[327874584,1716571840092,-535.28,0.00024657,2]
[327874585,1716571840104,-500.0,0.00024657,2]
[327874586,1716571840115,-500.0,0.00024657,2]
[327874587,1716571840125,-500.0,0.00024657,2]
[327874588,1716571840136,-500.0,0.00024657,2]
[327874589,1716571840146,-500.0,0.00024657,2]
[327874590,1716571840157,-151.0,0.00024856,5]
[327874591,1716571840167,-189.57506819,0.000249,2]
[327874592,1716571840178,-9346.19,0.0002493,12]
[327874593,1716571840187,-500.0,0.00024931,3]
[327874594,1716571840198,-500.0,0.00024931,3]
[327874595,1716571840208,-500.0,0.00024931,3]
[327874596,1716571840219,-500.0,0.00024931,3]
[327874597,1716571840235,-500.0,0.00024931,3]
[327874598,1716571840244,-500.0,0.00024931,3]
[327874599,1716571840256,-500.0,0.00024931,3]
[327874600,1716571840266,-500.0,0.00024931,3]
[327874601,1716571840276,-500.0,0.00024931,3]
[327874602,1716571840286,-501.76,0.00024931,3]
[327874603,1716571840296,-500.0,0.00024931,3]
[327874604,1716571840306,-500.0,0.00024931,3]
[327874605,1716571840316,-615.59,0.00024931,3]
[327874606,1716571840326,-500.0,0.00024931,3]
[327874607,1716571840336,-508.77,0.00024931,3]
[327874608,1716571840346,-500.0,0.00024931,3]
[327874609,1716571840356,-500.0,0.00024931,3]
[327874610,1716571840366,-500.0,0.00024931,3]
[327874611,1716571840376,-500.0,0.00024931,3]
[327874612,1716571840386,-650.17,0.00024931,3]
[327874613,1716571840395,-508.44,0.00024931,3]
[327874614,1716571840406,-640.18,0.00024931,3]
[327874615,1716571840416,-500.0,0.00024931,3]
[327874616,1716571840425,-500.0,0.00024931,3]
[327874617,1716571840434,-247.76554986,0.00024931,3]
[327874618,1716571840444,-500.0,0.00024931,3]
[327874619,1716571840454,-500.0,0.00024931,3]
[327874620,1716571840463,-3375.84,0.00024931,3]
[327874621,1716571840472,-2387.63,0.00024931,3]
[327874622,1716571840485,-500.0,0.00024931,3]
[327874623,1716571840496,-500.0,0.00024931,3]
[327874624,1716571840506,-500.0,0.00024931,3]
[327874625,1716571840517,-500.0,0.00024931,3]
[327874626,1716571840527,-500.0,0.00024931,3]
[327874627,1716571840537,-500.0,0.00024931,3]
[327874628,1716571840547,-500.0,0.00024931,3]
[327874629,1716571840556,-500.0,0.00024931,3]
[327874630,1716571840566,-500.0,0.00024931,3]
[327874631,1716571840576,-500.0,0.00024931,3]
[327874632,1716571840586,-551.39,0.00024931,3]
[327874633,1716571840596,-500.0,0.00024931,3]
[327874634,1716571840606,-730.03,0.00024931,3]
[327874635,1716571840617,-500.0,0.00024931,3]
[327874636,1716571840628,-631.59,0.00024931,3]
[327874637,1716571840638,-500.0,0.00024931,3]
[327874638,1716571840648,-500.0,0.00024931,3]
[327874640,1716571840658,-500.0,0.00024931,3]
[327874642,1716571840669,-1314.92,0.00024931,3]
[327874644,1716571840679,-186.26335302,0.00024931,3]
[327874646,1716571840690,-531.56,0.00024931,3]
[327874648,1716571840700,-250.0,0.00024931,3]
[327874650,1716571840710,-500.0,0.00024931,3]
[327874652,1716571840720,-500.0,0.00024931,3]
[327874654,1716571840733,-243.4891551,0.00024931,3]
[327874656,1716571840743,-632.21,0.00024931,3]
[327874658,1716571840753,-527.55,0.00024931,3]
[327874660,1716571840763,-500.0,0.00024931,3]
[327874662,1716571840773,-1648.32,0.00024931,3]
[327874664,1716571840784,-912.8,0.00024931,3]
[327874667,1716571840794,-500.0,0.00024931,3]
[327874670,1716571840804,-500.0,0.00024931,3]
[327874674,1716571840814,-500.0,0.00024931,3]
[327874676,1716571840824,-500.0,0.00024931,3]
[327874677,1716571840834,-5297.89,0.00024931,3]
[327874678,1716571840845,-500.0,0.00024931,3]
[327874679,1716571840854,-500.0,0.00024931,3]
[327874680,1716571840864,-690.86,0.00024931,3]
[327874681,1716571840873,-5266.04,0.00024931,3]
[327874682,1716571840883,-500.0,0.00024931,3]
[327874683,1716571840893,-500.0,0.00024931,3]
[327874684,1716571840903,-1601.15,0.00024931,3]
[327874685,1716571840912,-535.28,0.00024931,3]
[327874686,1716571840922,-500.0,0.00024931,3]
[327874687,1716571840931,-500.0,0.00024931,3]
[327874688,1716571840941,-500.0,0.00024931,3]
[327874689,1716571840950,-500.0,0.00024931,3]
[327874690,1716571840960,-500.0,0.00024931,3]
[327874691,1716571840970,-401.04849883,0.00025,2]
[327874692,1716571840981,-361.0,0.00025131,2]
[327874693,1716571840991,-9346.19,0.00025204,13]
[327874694,1716571841001,-500.0,0.00025205,4]
[327874695,1716571841012,-500.0,0.00025205,4]
[327874696,1716571841026,-500.0,0.00025205,4]
[327874697,1716571841036,-500.0,0.00025205,4]
[327874698,1716571841046,-500.0,0.00025205,4]
[327874699,1716571841057,-500.0,0.00025205,4]
[327874700,1716571841067,-291.11,0.00025205,4]
[327874701,1716571841076,-501.76,0.00025205,4]
[327874702,1716571841086,-500.0,0.00025205,4]
[327874703,1716571841098,-500.0,0.00025205,4]
[327874704,1716571841108,-615.59,0.00025205,4]
[327874705,1716571841117,-500.0,0.00025205,4]
[327874706,1716571841127,-508.77,0.00025205,4]
[327874707,1716571841136,-500.0,0.00025205,4]
[327874708,1716571841145,-500.0,0.00025205,4]
[327874709,1716571841155,-500.0,0.00025205,4]
[327874710,1716571841165,-500.0,0.00025205,4]
[327874711,1716571841174,-650.17,0.00025205,4]
[327874712,1716571841185,-508.44,0.00025205,4]
[327874713,1716571841195,-640.18,0.00025205,4]
[327874714,1716571841204,-500.0,0.00025205,4]
[327874715,1716571841214,-500.0,0.00025205,4]
[327874716,1716571841224,-500.0,0.00025205,4]
[327874717,1716571841234,-3375.84,0.00025205,4]
[327874718,1716571841243,-2387.63,0.00025205,4]
[327874719,1716571841253,-617.73,0.00025205,4]
[327874720,1716571841262,-500.0,0.00025205,4]
[327874721,1716571841272,-500.0,0.00025205,4]
[327874722,1716571841282,-500.0,0.00025205,4]
[327874723,1716571841291,-500.0,0.00025205,4]
[327874724,1716571841301,-500.0,0.00025205,4]
[327874725,1716571841310,-500.0,0.00025205,4]
[327874726,1716571841320,-500.0,0.00025205,4]
[327874727,1716571841330,-551.39,0.00025205,4]
[327874728,1716571841340,-730.03,0.00025205,4]
[327874729,1716571841350,-500.0,0.00025205,4]
[327874730,1716571841360,-631.59,0.00025205,4]
[327874731,1716571841369,-500.0,0.00025205,4]
[327874732,1716571841380,-500.0,0.00025205,4]
[327874733,1716571841390,-500.0,0.00025205,4]
[327874734,1716571841400,-1314.92,0.00025205,4]
[327874735,1716571841410,-531.56,0.00025205,4]
[327874736,1716571841420,-250.0,0.00025205,4]
[327874737,1716571841430,-500.0,0.00025205,4]
[327874738,1716571841440,-500.0,0.00025205,4]
[327874739,1716571841449,-632.21,0.00025205,4]
[327874740,1716571841459,-527.55,0.00025205,4]
[327874741,1716571841469,-500.0,0.00025205,4]
[327874742,1716571841480,-1648.32,0.00025205,4]
[327874743,1716571841490,-912.8,0.00025205,4]
[327874744,1716571841499,-367.27924875,0.00025205,4]
[327874745,1716571841508,-500.0,0.00025205,4]
[327874746,1716571841519,-500.0,0.00025205,4]
[327874747,1716571841529,-500.0,0.00025205,4]
[327874748,1716571841539,-5297.89,0.00025205,4]
[327874749,1716571841551,-366.66027768,0.00025205,4]
[327874750,1716571841561,-500.0,0.00025205,4]
[327874751,1716571841571,-5266.04,0.00025205,4]
[327874752,1716571841580,-690.86,0.00025205,4]
[327874753,1716571841589,-500.0,0.00025205,4]
[327874754,1716571841599,-500.0,0.00025205,4]
[327874755,1716571841609,-1601.15,0.00025205,4]
[327874757,1716571841618,-535.28,0.00025205,4]
[327874759,1716571841628,-433.34029675,0.00025205,4]
[327874760,1716571841637,-500.0,0.00025205,4]
[327874763,1716571841647,-500.0,0.00025205,4]
[327874765,1716571841657,-614.37175545,0.00025205,4]
[327874780,1716571841791,-361.0,0.00025315,2]
[327874782,1716571841801,-151.0,0.00025414,5]
[327874784,1716571841811,-9346.19,0.00025478,14]
[327874786,1716571841821,-500.0,0.00025479,5]
[327874788,1716571841831,-500.0,0.00025479,5]
[327874790,1716571841840,-500.0,0.00025479,5]
[327874792,1716571841850,-500.0,0.00025479,5]
[327874794,1716571841859,-500.0,0.00025479,5]
[327874796,1716571841869,-500.0,0.00025479,5]
[327874798,1716571841879,-501.76,0.00025479,5]
[327874800,1716571841888,-500.0,0.00025479,5]
[327874802,1716571841898,-500.0,0.00025479,5]
[327874804,1716571841908,-615.59,0.00025479,5]
[327874806,1716571841918,-500.0,0.00025479,5]
[327874808,1716571841929,-508.77,0.00025479,5]
[327874810,1716571841939,-500.0,0.00025479,5]
[327874812,1716571841949,-500.0,0.00025479,5]
[327874814,1716571841959,-500.0,0.00025479,5]
[327874816,1716571841968,-500.0,0.00025479,5]
[327874818,1716571841982,-650.17,0.00025479,5]
[327874820,1716571841992,-508.44,0.00025479,5]
[327874822,1716571842002,-640.18,0.00025479,5]
[327874824,1716571842012,-500.0,0.00025479,5]
[327874826,1716571842025,-500.0,0.00025479,5]
[327874828,1716571842036,-3375.84,0.00025479,5]
[327874830,1716571842047,-2387.63,0.00025479,5]
[327874832,1716571842057,-500.0,0.00025479,5]
[327874834,1716571842067,-500.0,0.00025479,5]
[327874836,1716571842077,-500.0,0.00025479,5]
[327874838,1716571842087,-500.0,0.00025479,5]
[327874839,1716571842100,-500.0,0.00025479,5]
[327874841,1716571842111,-500.0,0.00025479,5]
[327874842,1716571842121,-500.0,0.00025479,5]
[327874843,1716571842130,-551.39,0.00025479,5]
[327874844,1716571842140,-730.03,0.00025479,5]
[327874845,1716571842150,-500.0,0.00025479,5]
[327874846,1716571842159,-631.59,0.00025479,5]
[327874847,1716571842169,-500.0,0.00025479,5]
[327874848,1716571842179,-500.0,0.00025479,5]
[327874849,1716571842188,-500.0,0.00025479,5]
[327874850,1716571842197,-1314.92,0.00025479,5]
[327874851,1716571842206,-531.56,0.00025479,5]
[327874852,1716571842216,-369.07192742,0.00025479,5]
[327874853,1716571842228,-500.0,0.00025479,5]
[327874854,1716571842238,-500.0,0.00025479,5]
[327874855,1716571842247,-632.21,0.00025479,5]
[327874856,1716571842257,-527.55,0.00025479,5]
[327874857,1716571842267,-349.00048686,0.00025479,5]
[327874858,1716571842277,-1648.32,0.00025479,5]
[327874859,1716571842288,-912.8,0.00025479,5]
[327874860,1716571842298,-500.0,0.00025479,5]
[327874861,1716571842308,-500.0,0.00025479,5]
[327874862,1716571842318,-5297.89,0.00025479,5]
[327874863,1716571842328,-500.0,0.00025479,5]
[327874864,1716571842338,-5266.04,0.00025479,5]
[327874865,1716571842349,-690.86,0.00025479,5]
[327874866,1716571842358,-500.0,0.00025479,5]
[327874867,1716571842368,-500.0,0.00025479,5]
[327874868,1716571842378,-1601.15,0.00025479,5]
[327874869,1716571842388,-535.28,0.00025479,5]
[327874870,1716571842399,-500.0,0.00025479,5]
[327874871,1716571842409,-465.56510077,0.00025479,5]
[327874872,1716571842419,-150.83408251,0.00025592,2]
[327874873,1716571842428,-9346.19,0.00025752,15]
[327874874,1716571842438,-500.0,0.00025753,6]
[327874875,1716571842449,-500.0,0.00025753,6]
[327874876,1716571842459,-500.0,0.00025753,6]
[327874877,1716571842469,-500.0,0.00025753,6]
[327874878,1716571842481,-500.0,0.00025753,6]
[327874879,1716571842491,-501.76,0.00025753,6]
[327874880,1716571842501,-500.0,0.00025753,6]
[327874881,1716571842511,-500.0,0.00025753,6]
[327874882,1716571842521,-615.59,0.00025753,6]
[327874883,1716571842531,-500.0,0.00025753,6]
[327874884,1716571842541,-508.77,0.00025753,6]
[327874885,1716571842551,-500.0,0.00025753,6]
[327874886,1716571842561,-500.0,0.00025753,6]
[327874887,1716571842570,-500.0,0.00025753,6]
[327874888,1716571842580,-500.0,0.00025753,6]
[327874889,1716571842589,-650.17,0.00025753,6]
[327874890,1716571842599,-508.44,0.00025753,6]
[327874891,1716571842608,-640.18,0.00025753,6]
[327874892,1716571842617,-500.0,0.00025753,6]
[327874893,1716571842627,-500.0,0.00025753,6]
[327874894,1716571842636,-3375.84,0.00025753,6]
[327874895,1716571842645,-2387.63,0.00025753,6]
[327874896,1716571842655,-500.0,0.00025753,6]
[327874897,1716571842664,-500.0,0.00025753,6]
[327874898,1716571842674,-500.0,0.00025753,6]
[327874899,1716571842683,-500.0,0.00025753,6]
[327874900,1716571842693,-500.0,0.00025753,6]
[327874901,1716571842702,-500.0,0.00025753,6]
[327874902,1716571842712,-500.0,0.00025753,6]
[327874903,1716571842721,-551.39,0.00025753,6]
[327874904,1716571842732,-730.03,0.00025753,6]
[327874905,1716571842742,-500.0,0.00025753,6]
[327874906,1716571842751,-631.59,0.00025753,6]
[327874907,1716571842761,-500.0,0.00025753,6]
[327874908,1716571842771,-500.0,0.00025753,6]
[327874909,1716571842780,-500.0,0.00025753,6]
[327874910,1716571842790,-1314.92,0.00025753,6]
[327874911,1716571842799,-531.56,0.00025753,6]
[327874912,1716571842808,-500.0,0.00025753,6]
[327874913,1716571842817,-632.21,0.00025753,6]
[327874914,1716571842826,-527.55,0.00025753,6]
[327874915,1716571842836,-912.8,0.00025753,6]
[327874916,1716571842845,-1648.32,0.00025753,6]
[327874917,1716571842855,-500.0,0.00025753,6]
[327874918,1716571842864,-270.47027755,0.00025753,6]
[327874919,1716571842873,-5297.89,0.00025753,6]
[327874920,1716571842883,-500.0,0.00025753,6]
[327874921,1716571842892,-5266.04,0.00025753,6]
[327874922,1716571842902,-690.86,0.00025753,6]
[327874923,1716571842911,-500.0,0.00025753,6]
[327874924,1716571842921,-500.0,0.00025753,6]
[327874925,1716571842930,-1601.15,0.00025753,6]
[327874926,1716571842939,-535.28,0.00025753,6]
[327874927,1716571842949,-500.0,0.00025753,6]
[327874928,1716571842958,-151.0,0.00025972,5]
[327874929,1716571842967,-213229.982714,0.00026,2]
[327874930,1716571842978,-9346.19,0.00026014,16]
[327874931,1716571842988,-500.0,0.00026027,7]
[327874934,1716571842998,-500.0,0.00026027,7]
[327874935,1716571843007,-500.0,0.00026027,7]
[327874936,1716571843017,-500.0,0.00026027,7]
[327874937,1716571843031,-500.0,0.00026027,7]
[327874938,1716571843040,-501.76,0.00026027,7]
[327874939,1716571843049,-500.0,0.00026027,7]
[327874940,1716571843057,-500.0,0.00026027,7]
[327874941,1716571843068,-615.59,0.00026027,7]
[327874942,1716571843077,-254.62959941,0.00026027,7]
[327874943,1716571843086,-508.77,0.00026027,7]
[327874944,1716571843095,-500.0,0.00026027,7]
[327874945,1716571843106,-500.0,0.00026027,7]
[327874946,1716571843115,-377.94362551,0.00026027,7]
[327874947,1716571843124,-500.0,0.00026027,7]
[327874948,1716571843133,-650.17,0.00026027,7]
[327874949,1716571843142,-508.44,0.00026027,7]